[Event "Sautron op 16th"]
[Site "Sautron"]
[Date "2016.10.22"]
[Round "3.2"]
[White "Stephan, Victor"]
[Black "Koziak, Vitali"]
[Result "1/2-1/2"]
[ECO "E34"]
[WhiteElo "2356"]
[BlackElo "2479"]
[Annotator "RR"]
[PlyCount "73"]
[EventDate "2016.10.22"]
[EventType "swiss"]
[EventRounds "9"]
[EventCountry "FRA"]
[SourceTitle "EXT 2019"]
[Source "ChessBase"]
[SourceDate "2018.10.10"]
[SourceVersion "1"]
[SourceVersionDate "2018.10.10"]
[SourceQuality "1"]
[TimeControl "40/5400+30:1800+30"]
[WhiteClock "0:29:38"]
[BlackClock "0:09:25"]

1. d4 {[%emt 0:00:00]} Nf6 {[%emt 0:01:31]} 2. c4 {[%emt 0:00:02]} e6 {[%emt 0:
01:41]} 3. Nc3 {[%emt 0:00:40]} Bb4 {[%emt 0:00:29]} 4. Qc2 {[%emt 0:01:43]} d5
{[%emt 0:10:01]} (4... O-O) (4... c5) 5. cxd5 {[%emt 0:01:34]} Qxd5 {[%emt 0:
03:47]} (5... exd5 {La grande ligne qui peut transposer sur une défense
Ragozin}) 6. Nf3 {[%emt 0:02:44]} Qf5 {[%emt 0:06:38]} 7. Qxf5 {[%emt 0:00:45]}
exf5 {[%emt 0:00:02]} 8. a3 {[%emt 0:00:33]} Be7 {[%emt 0:01:15]} (8... Bd6 {
L'alternative} 9. Nb5 (9. Bg5)) 9. Bf4 {[%emt 0:04:24]} c6 {[%emt 0:00:13]} 10.
h3 {[%emt 0:04:07]} (10. e3) 10... Nbd7 {[%emt 0:01:20]} 11. e3 {[%emt 0:04:48]
} Nb6 {[%emt 0:10:48]} 12. Bd3 {[%emt 0:02:39]} Nfd5 $146 {[%emt 0:01:06]} (
12... Be6 13. Rc1 a5 14. Bc7 Nbd5 15. Nxd5 Nxd5 16. Bh2 Nb6 17. Nd2 Kd7 18. Be5
f6 19. Bg3 h5 20. h4 a4 21. f3 Rhe8 22. Kf2 Ra5 23. Rc2 g6 24. Rhc1 Bf8 25. e4
Bh6 26. Rd1 Bxd2 27. Rdxd2 fxe4 28. fxe4 Bb3 29. Rc5 Rea8 30. Ke3 Nc8 31. Rf2
Rxc5 32. dxc5 Ke6 33. Bc7 Ne7 34. g3 f5 35. Kd4 fxe4 36. Bxe4 Nf5+ 37. Bxf5+
gxf5 38. Re2+ Kd7 39. Bd6 Re8 40. Rxe8 Kxe8 41. Ke5 Kd7 42. Bf8 {Zhigalko,S 
(2679)-Wojtaszek,R (2721) Wroclaw 2011 1/2-1/2}) 13. Be5 {[%emt 0:02:59]} f6 {
[%emt 0:00:42]} 14. Bh2 {[%emt 0:00:37]} Be6 {[%emt 0:04:13]} 15. Nd2 {[%emt 0:
01:50]} Kf7 $11 {[%emt 0:01:52]} 16. Ke2 {[%emt 0:01:28]} Rhd8 {[%emt 0:18:57]}
17. Nxd5 {[%emt 0:04:07]} cxd5 {[%emt 0:11:53][%cal Ga8c8,Gd8c8]} (17... Bxd5
18. b4) 18. Bc7 $1 {[%emt 0:09:43]} Rdc8 {[%emt 0:00:07]} 19. Bxb6 {[%emt 0:00:
38]} axb6 {[%emt 0:00:05]} 20. Rac1 {[%emt 0:00:05]} Rxc1 {[%emt 0:02:47]} 21.
Rxc1 $14 {[%emt 0:01:09] Les Blancs ont une bonne finale} Rc8 {[%emt 0:02:12]}
22. Rxc8 {[%emt 0:00:24]} Bxc8 {[%emt 0:00:02]} 23. Nb1 $1 {[%emt 0:01:14]
[%csl Rd5][%cal Gb1c3,Gd3c2,Gc2b3]} Ke6 {[%emt 0:01:49]} 24. Nc3 {[%emt 0:01:
06]} Bd7 {[%emt 0:02:26]} 25. Bc2 {[%emt 0:03:10]} Kd6 {[%emt 0:00:16] Le K
centralisé est un bon défenseur des faiblesses.} 26. Bb3 {[%emt 0:00:40]} Be6
{[%emt 0:00:06]} 27. f3 {[%emt 0:07:52]} Bd8 {[%emt 0:00:45]} 28. Ba4 {[%emt 0:
02:05]} (28. Kd3) 28... Be7 {[%emt 0:02:02]} 29. Kd2 {[%emt 0:02:45]} Bd8 {
[%emt 0:01:42]} 30. Ne2 {[%emt 0:01:40]} Bc7 {[%emt 0:03:11]} 31. b4 {[%emt 0:
03:00]} (31. Nf4) 31... Ke7 {[%emt 0:03:00]} 32. Bb3 {[%emt 0:00:51]} Bb8 {
[%emt 0:00:18]} 33. Nc3 {[%emt 0:02:52]} Kd6 {[%emt 0:00:07]} 34. Nb5+ {
[%emt 0:00:57]} Kd7 {[%emt 0:00:55]} 35. Nc3 {[%emt 0:01:29]} Kd6 {[%emt 0:00:
05]} 36. Nb5+ {[%emt 0:02:06]} Kd7 {[%emt 0:00:12]} 37. Nc3 {[%emt 0:00:06]}
1/2-1/2